fUSD/lending_fUSD_20240910
["ID","MTS","AMOUNT","RATE_DAILY","PERIOD"]
[337695571,1725969158533,2600.0,0.000118,4]
[337695572,1725969160640,500.0,0.000119,4]
[337695573,1725969175504,10000.0,0.00028,120]
[337695574,1725969182774,10000.0,0.00028,120]
[337695575,1725969198659,10000.0,0.00028,120]
[337695576,1725969205813,10000.0,0.00028,120]
[337695577,1725969223270,713.91,0.00028,120]
[337695578,1725969230296,150.0,3.25e-06,2]
[337695579,1725969237656,263.59098676,0.0001193,2]
[337695580,1725969288376,1360.72090225,0.00011939,2]
[337695581,1725969292176,460.12046264,0.00011941,2]
[337695582,1725969309940,209.96855528,0.00011941,2]
[337695583,1725969337979,168.9496233,0.00011939,2]
[337695584,1725969392100,164.82,0.00011339,2]
[337695585,1725969427480,306.7469751,0.00011941,2]
[337695586,1725969434375,174.49724789,0.00011941,2]
[337695587,1725969445323,1000.0,0.00011261,2]
[337695588,1725969462209,150.0,3.44e-06,2]
[337695589,1725969464517,415.41238954,0.00011757,2]
[337695590,1725969474148,194.76,0.0001128,2]
[337695591,1725969480704,420.50854,0.0001192,2]
[337695592,1725969499611,313.67,9.399e-05,2]
[337695593,1725969499930,313.67,0.00011662,2]
[337695594,1725969529562,159.69,0.00011354,2]
[337695595,1725969529789,159.69,0.00011359,2]
[337695596,1725969530011,159.69,0.00011363,2]
[337695597,1725969530227,159.69,0.00011368,2]
[337695598,1725969530442,159.69,0.00011373,2]
[337695599,1725969530866,159.69,0.00011377,2]
[337695600,1725969531079,159.69,0.00011382,2]
[337695601,1725969531282,159.69,0.00011387,2]
[337695602,1725969531512,159.69,0.00011392,2]
[337695603,1725969531728,159.69,0.00011396,2]
[337695604,1725969531952,159.69,0.00011401,2]
[337695605,1725969532161,159.69,0.00011406,2]
[337695606,1725969532389,159.69,0.00011411,2]
[337695607,1725969562667,204.4979834,0.00011942,2]
[337695608,1725969588352,168.9496233,0.00011939,2]
[337695609,1725969635404,166.67,0.00011343,2]
[337695610,1725969636522,250.0,0.00011343,2]
[337695611,1725969803619,1224.64881198,0.00011938,2]
[337695612,1725969816997,500.0,0.00011987,2]
[337695613,1725969817289,150.0,0.00011933,2]
[337695614,1725969819556,750.0,0.00011,2]
[337695615,1725969823655,168.9496233,0.00011939,2]
[337695616,1725969900730,152.0,0.00011831,5]
[337695617,1725969901101,152.0,0.00011548,4]
[337695618,1725969901417,152.0,0.00011266,3]
[337695619,1725969905684,150.0,0.00010825,2]
[337695620,1725969914529,150.0,0.00010825,2]
[337695621,1725969981920,600.0,0.00011278,2]
[337695622,1725969998532,282.3,9.392e-05,2]
[337695623,1725969998952,282.3,0.00011656,2]
[337695624,1725970054048,168.9496233,0.00011939,2]
[337695625,1725970099105,198.86652125,0.00011941,2]
[337695626,1725970113473,250.0,0.00011267,2]
[337695627,1725970165706,166.66,0.00011267,2]
[337695628,1725970187009,-162.9,0.00012018,2]
[337695629,1725970187037,-1703.0,0.00012019,2]
[337695630,1725970187067,-608.53159532,0.0001202,2]
[337695631,1725970187097,-300.0,0.00012027,2]
[337695632,1725970187128,-150.0,0.00012027,2]
[337695633,1725970187157,-4365.27907591,0.00012027,2]
[337695634,1725970187191,-925.45750966,0.00012027,2]
[337695637,1725970232053,-482.9393786,0.00012028,2]
[337695638,1725970232065,-9195.44957511,0.00012028,2]
[337695639,1725970232076,-14151.92808368,0.00012028,2]
[337695640,1725970232085,-162.9,0.00012028,2]
[337695641,1725970232099,-162.9,0.00012028,2]
[337695642,1725970232109,-395.029,0.00012029,2]
[337695643,1725970232118,-151.655,0.00012029,2]
[337695644,1725970232128,-2432.17863649,0.00012029,2]
[337695645,1725970232202,-7453.07307475,0.00012029,2]
[337695646,1725970232212,-151.35,0.00012031,2]
[337695647,1725970232223,-1739.2,0.00012037,2]
[337695648,1725970232233,-1827.46,0.00012037,2]
[337695649,1725970232242,-1605.3,0.00012037,2]
[337695650,1725970232251,-1680.11,0.00012037,2]
[337695651,1725970232262,-1602.91,0.00012037,2]
[337695652,1725970232272,-500.0,0.00012037,2]
[337695653,1725970232282,-631.19,0.00012037,2]
[337695654,1725970232292,-1552.58,0.00012037,2]
[337695655,1725970232302,-1345.24,0.00012037,2]
[337695656,1725970232311,-1440.9,0.00012037,2]
[337695657,1725970232321,-5099.52,0.00012037,2]
[337695658,1725970232330,-1066.26,0.00012037,2]
[337695659,1725970232340,-1673.0,0.00012037,2]
[337695660,1725970232350,-639.07,0.00012037,2]
[337695661,1725970232360,-1457.47,0.00012037,2]
[337695662,1725970232370,-500.0,0.00012037,2]
[337695663,1725970232380,-500.0,0.00012037,2]
[337695664,1725970232390,-1675.32,0.00012037,2]
[337695665,1725970232399,-500.0,0.00012037,2]
[337695666,1725970232410,-627.55,0.00012037,2]
[337695667,1725970232419,-500.0,0.00012037,2]
[337695668,1725970232428,-500.0,0.00012037,2]
[337695669,1725970232438,-3275.95,0.00012037,2]
[337695670,1725970232447,-572.1565,0.00012038,2]
[337695671,1725970232457,-858.78,0.00012038,2]
[337695672,1725970232466,-853.66,0.00012038,2]
[337695673,1725970232476,-971.76,0.00012038,2]
[337695674,1725970232485,-714.72,0.00012038,2]
[337695675,1725970232495,-500.0,0.00012038,2]
[337695676,1725970232505,-628.95,0.00012038,2]
[337695677,1725970232516,-500.0,0.00012038,2]
[337695678,1725970232525,-1024.05,0.00012038,2]
[337695679,1725970232534,-500.0,0.00012038,2]
[337695680,1725970232544,-500.0,0.00012038,2]
[337695681,1725970232553,-896.43,0.00012038,2]
[337695682,1725970232563,-834.17,0.00012038,2]
[337695683,1725970232573,-500.0,0.00012038,2]
[337695684,1725970232582,-579.13,0.00012038,2]
[337695685,1725970232592,-842.32,0.00012038,2]
[337695686,1725970232602,-500.0,0.00012038,2]
[337695687,1725970232611,-736.13,0.00012038,2]
[337695688,1725970232620,-1239.84,0.00012038,2]
[337695689,1725970232630,-1077.96,0.00012038,2]
[337695690,1725970232644,-1463.74,0.00012038,2]
[337695691,1725970232653,-500.0,0.00012038,2]
[337695692,1725970232663,-796.79,0.00012038,2]
[337695693,1725970232672,-500.0,0.00012038,2]
[337695694,1725970232682,-1722.62,0.00012038,2]
[337695695,1725970232692,-26919.36,0.00012038,2]
[337695696,1725970232701,-591.89,0.00012038,2]
[337695697,1725970232711,-592.41,0.00012038,2]
[337695698,1725970232722,-513.56,0.00012038,2]
[337695699,1725970232731,-720.55,0.00012038,2]
[337695700,1725970232742,-500.0,0.00012038,2]
[337695702,1725970232751,-3883.01,0.00012038,2]
[337695704,1725970232760,-3520.28,0.00012038,2]
[337695706,1725970232769,-597.5,0.00012038,2]
[337695708,1725970232779,-3981.83,0.00012038,2]
[337695710,1725970232788,-500.0,0.00012038,2]
[337695712,1725970232797,-500.0,0.00012038,2]
[337695714,1725970232807,-587.32003717,0.00012038,2]
[337695716,1725970232816,-5063.37,0.00012038,2]
[337695717,1725970232826,-2108.63,0.00012038,2]
[337695719,1725970232835,-5091.35,0.00012038,2]
[337695722,1725970232847,-500.0,0.00012038,2]
[337695724,1725970232856,-2722.05,0.00012038,2]
[337695726,1725970232866,-1768.56,0.00012038,2]
[337695727,1725970232875,-1814.55,0.00012038,2]
[337695729,1725970232885,-500.0,0.00012038,2]
[337695731,1725970232894,-4396.25,0.00012038,2]
[337695733,1725970232903,-272.73608162,0.00012038,2]
[337695735,1725970232912,-500.0,0.00012038,2]
[337695737,1725970232922,-1020.1,0.00012038,2]
[337695739,1725970232932,-1873.85,0.00012038,2]
[337695741,1725970232941,-3916.04,0.00012038,2]
[337695743,1725970232950,-500.0,0.00012038,2]
[337695745,1725970232960,-729.65,0.00012038,2]
[337695747,1725970232969,-1801.76,0.00012038,2]
[337695749,1725970232979,-500.0,0.00012038,2]
[337695751,1725970232988,-1517.46,0.00012038,2]
[337695753,1725970232997,-1678.45,0.00012038,2]
[337695755,1725970233007,-2195.35,0.00012038,2]
[337695757,1725970233016,-1401.42,0.00012038,2]
[337695759,1725970233025,-2244.76,0.00012038,2]
[337695760,1725970233035,-500.0,0.00012038,2]
[337695761,1725970233044,-4509.19,0.00012038,2]
[337695762,1725970233054,-2045.94,0.00012038,2]
[337695763,1725970233064,-535.51,0.00012038,2]
[337695764,1725970233073,-669.92,0.00012038,2]
[337695765,1725970233083,-753.54,0.00012038,2]
[337695766,1725970233093,-1240.4,0.00012038,2]
[337695767,1725970233102,-631.89,0.00012038,2]
[337695768,1725970233112,-500.0,0.00012038,2]
[337695769,1725970233121,-500.0,0.00012038,2]
[337695770,1725970233131,-500.33,0.00012038,2]
[337695771,1725970233141,-1084.24,0.00012038,2]
[337695772,1725970233150,-1362.36,0.00012038,2]
[337695773,1725970233160,-1729.13,0.00012038,2]
[337695774,1725970233170,-569.89,0.00012038,2]
[337695775,1725970233180,-4150.58,0.00012038,2]
[337695776,1725970233190,-500.0,0.00012038,2]
[337695777,1725970233199,-2585.56,0.00012038,2]
[337695778,1725970233208,-500.0,0.00012038,2]
[337695779,1725970233218,-624.2,0.00012038,2]
[337695780,1725970233230,-2108.64,0.00012038,2]
[337695781,1725970233240,-1319.95,0.00012038,2]
[337695782,1725970233249,-601.21,0.00012038,2]
[337695783,1725970233259,-1733.65,0.00012038,2]
[337695784,1725970233269,-1031.29,0.00012038,2]
[337695785,1725970233279,-1198.04,0.00012038,2]
[337695786,1725970233288,-1657.04,0.00012038,2]
[337695787,1725970233299,-8294.18,0.00012038,2]
[337695788,1725970233308,-1385.66,0.00012038,2]
[337695789,1725970233318,-3351.2,0.00012038,2]
[337695790,1725970233328,-3260.21,0.00012038,2]
[337695791,1725970233338,-1917.35,0.00012038,2]
[337695792,1725970233348,-1962.72,0.00012038,2]
[337695793,1725970233358,-761.51,0.00012038,2]
[337695794,1725970233369,-2153.07,0.00012038,2]
[337695795,1725970233379,-22837.61,0.00012038,2]
[337695796,1725970233389,-1461.79,0.00012038,2]
[337695797,1725970233399,-1116.79,0.00012038,2]
[337695798,1725970233409,-5002.38,0.00012038,2]
[337695799,1725970233418,-40612.14,0.00012038,2]
[337695800,1725970233428,-1785.93,0.00012038,2]
[337695801,1725970233438,-3459.04,0.00012038,2]
[337695802,1725970233448,-5076.94,0.00012038,2]
[337695803,1725970233458,-500.0,0.00012038,2]
[337695804,1725970233468,-500.0,0.00012038,2]
[337695805,1725970233479,-1129.75557188,0.00012038,2]
[337695806,1725970233494,-348.26422483,0.00012038,2]
[337695807,1725970233519,-2086.25020329,0.00012038,2]
[337695808,1725970233529,-1092.92,0.00012038,2]
[337695809,1725970233539,-500.0,0.00012038,2]
[337695810,1725970233549,-548.81,0.00012039,2]
[337695811,1725970233559,-911.85,0.00012039,2]
[337695812,1725970233569,-500.0,0.00012039,2]
[337695813,1725970233579,-950.36,0.00012039,2]
[337695814,1725970233588,-500.0,0.00012039,2]
[337695815,1725970233598,-852.28,0.00012039,2]
[337695816,1725970233608,-500.0,0.00012039,2]
[337695817,1725970233619,-500.0,0.00012039,2]
[337695818,1725970233628,-826.0,0.00012039,2]
[337695819,1725970233639,-1701.07,0.00012039,2]
[337695820,1725970233648,-1590.61,0.00012039,2]
[337695821,1725970233658,-1034.62192721,0.00012039,2]
[337695822,1725970233781,-19.67807279,0.00012039,2]
[337695823,1725970233791,-621.27,0.00012039,2]
[337695824,1725970233801,-431.97970854,0.00012039,2]
[337695825,1725970233813,-272.38029146,0.00012039,2]
[337695826,1725970233823,-184.6373576,0.00012039,2]
[337695827,1725970233835,-1253.6926424,0.00012039,2]
[337695828,1725970233845,-500.0,0.00012039,2]
[337695829,1725970233855,-500.0,0.00012039,2]
[337695830,1725970233866,-603.58,0.00012039,2]
[337695831,1725970233876,-859.75,0.00012039,2]
[337695832,1725970233885,-433.75204653,0.00012039,2]
[337695833,1725970237981,-572.6,0.00012037,2]
[337695835,1725970237991,-404.27355896,0.00012037,2]
[337695838,1725970238051,-95.72644104,0.00012037,2]
[337695840,1725970238061,-345.93357069,0.00012038,2]
[337695842,1725970238073,-458.12642931,0.00012038,2]
[337695844,1725970238082,-500.0,0.00012038,2]
[337695845,1725970238095,-500.0,0.00012038,2]
[337695846,1725970238104,-89.61795347,0.00012039,2]
[337695847,1725970238113,-666.12,0.00012039,2]
[337695848,1725970238122,-2086.7,0.00012039,2]
[337695849,1725970238131,-500.0,0.00012039,2]
[337695850,1725970238141,-500.0,0.00012039,2]
[337695851,1725970238151,-2703.2,0.00012039,2]
[337695852,1725970238161,-21718.38,0.00012039,2]
[337695853,1725970238170,-576.61,0.00012039,2]
[337695854,1725970238179,-3463.97,0.00012039,2]
[337695855,1725970238189,-608.45,0.00012039,2]
[337695856,1725970238199,-13360.61,0.00012039,2]
[337695857,1725970238208,-500.0,0.00012039,2]
[337695858,1725970238217,-1366.95,0.00012039,2]
[337695859,1725970238228,-709.14,0.00012039,2]
[337695860,1725970238244,-6868.55,0.00012039,2]
[337695861,1725970238254,-21016.29232988,0.00012039,2]
[337695862,1725970238266,-570.23685725,0.00012039,2]
[337695863,1725970238322,-1839.93992941,0.00012039,2]
[337695864,1725970238338,-384.30158449,0.00012039,2]
[337695865,1725970238353,-1089.05208853,0.00012039,2]
[337695867,1725970238373,-3005.9759701,0.00012039,2]
[337695869,1725970238390,-13135.51124034,0.00012039,2]
[337695871,1725970238400,-6249.63,0.00012039,2]
[337695872,1725970238409,-299.99,0.00012039,2]
[337695873,1725970238419,-459.93,0.00012039,2]
[337695874,1725970238429,-1080.28,0.00012039,2]
[337695875,1725970238438,-15880.73,0.00012039,2]
[337695876,1725970238448,-3586.64,0.00012039,2]
[337695877,1725970238457,-1417.39,0.00012039,2]
[337695878,1725970238467,-3436.23,0.00012039,2]
[337695879,1725970238476,-543.19014508,0.00012039,2]
[337695880,1725970238486,-2615.56,0.00012039,2]
[337695881,1725970238495,-575.57,0.00012039,2]
[337695882,1725970238505,-1004.14,0.00012039,2]
[337695884,1725970238515,-1663.89,0.00012039,2]
[337695886,1725970238524,-3610.4,0.00012039,2]
[337695888,1725970238534,-3264.77,0.00012039,2]
[337695890,1725970238543,-2058.68,0.00012039,2]
[337695892,1725970238552,-151.92626711,0.0001204,2]
[337695894,1725970238562,-764.0,0.00012041,2]
[337695896,1725970238571,-247152.73925745,0.00012041,2]
[337695898,1725970238580,-186350.34364618,0.00012041,2]
[337695943,1725970240157,-4100.0181552,0.00012038,2]
[337695944,1725970240173,-119.4518448,0.00012038,2]
[337695945,1725970240182,-454.2981552,0.00012041,2]
[337695946,1725970240194,-83753.99677017,0.00012041,2]
[337695947,1725970240205,-327995.49225876,0.00012041,2]
[337695948,1725970240216,-573.508,0.00012041,2]
[337696054,1725970241648,-389.44550813,0.00012041,2]
[337696056,1725970241661,-2293.12,0.00012041,2]
[337696059,1725970241674,-6905.52589726,0.00012041,2]
[337696101,1725970243115,-3721.22,0.00012038,2]
[337696102,1725970243125,-104525.58145189,0.00012041,2]
[337696104,1725970246255,-3815.92,0.00012038,2]
[337696105,1725970246266,-715.30526171,0.00012041,2]
[337696106,1725970246362,-521.63832216,0.00012041,2]
[337696107,1725970256790,152.63909011,0.0001186,2]
[337696108,1725970265158,1500.0,0.00011825,2]
[337696109,1725970265423,150.39,0.00011574,2]
[337696110,1725970276625,355.6906,0.00011938,2]
[337696111,1725970282313,202.17,0.00011426,2]
[337696112,1725970283651,167.57,0.00011426,2]
[337696113,1725970283864,167.57,0.00011438,2]
[337696114,1725970284027,35877.3275,0.00011938,2]
[337696115,1725970284072,167.57,0.00011449,2]
[337696116,1725970284301,167.57,0.0001146,2]
[337696117,1725970284525,167.57,0.00011472,2]
[337696118,1725970285015,167.57,0.00011483,2]
[337696119,1725970285058,200.0,0.00011426,2]
[337696120,1725970289489,500.0,9.164e-05,2]
[337696121,1725970289576,2238.8377,0.00011941,2]
[337696122,1725970291085,500.0,0.00011904,2]
[337696123,1725970303043,1000.0,0.00011938,2]
[337696124,1725970312190,500.0,9.164e-05,2]
[337696125,1725970313773,500.0,0.00011904,2]
[337696126,1725970320496,183.00821368,0.00011937,2]
[337696127,1725970339793,5084.7608,0.00011928,2]
[337696128,1725970346801,11079.8713,0.00011938,2]
[337696129,1725970352260,7257.3533,0.00011938,2]
[337696130,1725970354654,181.26,0.00011305,2]
[337696131,1725970359281,596.45245156,0.00011941,2]
[337696132,1725970377943,21006.5169,0.00011938,2]
[337696133,1725970379364,35183.4966,0.00011941,2]
[337696134,1725970403580,564.56,0.0001129,2]
[337696135,1725970434193,949.85,0.0001129,2]
[337696136,1725970458311,150.0,0.00011329,2]
[337696137,1725970470950,7935.49,0.00011329,2]
[337696138,1725970480056,168.9496233,0.00011938,2]
[337696139,1725970487101,23442.868,0.00011938,2]
[337696140,1725970491663,1540.43700174,0.00011941,2]
[337696141,1725970494496,397.63496772,0.00011941,2]
[337696142,1725970494774,520.0,0.00011295,2]
[337696143,1725970506084,266.95,0.00010959,2]
[337696144,1725970506193,200.0,0.00011279,2]
[337696146,1725970512915,823.32604944,0.00014,60]
[337696147,1725970529930,448.21,0.00011271,2]
[337696148,1725970564440,276.01,9.356e-05,2]
[337696149,1725970564996,276.01,0.0001162,2]
[337696150,1725970578334,1106.4,0.0001126,2]
[337696151,1725970582307,250.0,0.0001126,2]
[337696152,1725970611864,22964.56,0.00011274,2]
[337696153,1725970616844,1000.0,0.0001192,2]
[337696154,1725970629677,265.08997848,0.00011941,2]
[337696155,1725970631040,2300.0,0.00028,120]
[337696156,1725970658634,4000.0,0.00026,60]
[337696157,1725970677523,6242.1583,0.00011937,2]
[337696158,1725970679591,174.49724788,0.00011941,2]
[337696159,1725970681286,619.94,0.00011287,2]
[337696160,1725970689216,166.67,0.00011273,2]
[337696161,1725970695102,168.9496233,0.00011938,2]
[337696162,1725970710044,316.024,0.000118,2]
[337696163,1725970710074,151.655,0.000118,2]
[337696164,1725970723588,494.93,0.00011308,2]
[337696165,1725970764944,176.72665232,0.00011941,2]
[337696166,1725970777793,1200.0,0.00026,60]
[337696167,1725970790741,419.24111319,0.00011545,2]
[337696168,1725970797802,1015.76844771,0.00026,60]
[337696170,1725970839345,1326.28704001,0.00011937,2]
[337696171,1725970858077,250.0,0.00011207,2]
[337696172,1725970881032,217.70681838,0.00028,120]
[337696173,1725970896949,1500.0,0.0001198,2]
[337696174,1725970897140,150.0,0.00011968,2]
[337696175,1725970897196,150.0,0.00011873,2]
[337696176,1725970906045,150.0,0.00011787,2]
[337696177,1725970906100,150.0,0.00011972,2]
[337696178,1725970906158,150.0,0.00011977,2]
[337696179,1725970964940,350.42378,0.0001192,2]
[337696180,1725971017929,584.0,0.00011207,2]
[337696181,1725971035192,224.1,0.00011207,2]
[337696182,1725971050588,343.76,0.00010959,2]
[337696183,1725971093398,250.0,0.00011201,2]
[337696184,1725971103595,150.0,0.00010825,2]
[337696187,1725971147940,248.4,9.298e-05,2]
[337696188,1725971148326,248.4,0.00011562,2]
[337696189,1725971237576,10000.0,0.00028,120]
[337696190,1725971247707,166.67,0.0001125,2]
[337696194,1725971301813,-162.02,0.00012016,2]
[337696195,1725971301848,-150.0,0.00012024,2]
[337696196,1725971301881,-6206.70578886,0.00012026,2]
[337696197,1725971301915,-514.18104945,0.00012026,2]
[337696198,1725971301949,-162.02,0.00012026,2]
[337696199,1725971301979,-162.02,0.00012026,2]
[337696200,1725971302009,-162.02,0.00012026,2]
[337696201,1725971302038,-162.02,0.00012026,2]
[337696202,1725971302067,-162.02,0.00012027,2]
[337696203,1725971302095,-162.02,0.00012027,2]
[337696204,1725971302122,-162.02,0.00012027,2]
[337696205,1725971302150,-151.36,0.00012031,2]
[337696206,1725971302178,-150.0,0.00012035,2]
[337696207,1725971302209,-57.50696582,0.00012036,2]
[337696208,1725971312008,833.33333,0.0001192,2]
[337696209,1725971326195,-6689.24406494,0.00012036,2]
[337696211,1725971326252,-5249.65091432,0.00012036,2]
[337696212,1725971351255,-2448.25043803,0.00012036,2]
[337696213,1725971351283,-1294.56,0.00012036,2]
[337696214,1725971351311,-3185.21152649,0.00012036,2]
[337696215,1725971351347,-1701.82847351,0.00012036,2]
[337696216,1725971351376,-1380.86,0.00012036,2]
[337696217,1725971351404,-1116.73,0.00012036,2]
[337696218,1725971351432,-1603.3,0.00012036,2]
[337696219,1725971351460,-632.27666023,0.00012036,2]
[337696220,1725971354689,1193.658336,0.00011937,2]
[337696221,1725971355395,576.82,0.00012,2]
[337696223,1725971376267,-764.46333977,0.00012036,2]
[337696224,1725971376294,-612.44,0.00012036,2]
[337696225,1725971376322,-500.0,0.00012036,2]
[337696226,1725971376350,-601.4,0.00012036,2]
[337696227,1725971376378,-1271.03,0.00012036,2]
[337696228,1725971376686,-500.0,0.00012036,2]
[337696229,1725971376726,-500.0,0.00012036,2]
[337696230,1725971376755,-2445.94896672,0.00012036,2]
[337696231,1725971376788,-693.51103328,0.00012036,2]
[337696232,1725971376817,-548.74,0.00012036,2]
[337696233,1725971376845,-152.33505483,0.00012036,2]
[337696234,1725971401376,-347.66494517,0.00012036,2]
[337696235,1725971401403,-5399.1401706,0.00012036,2]
[337696236,1725971401431,-1620.27455861,0.00012036,2]
[337696237,1725971401470,-1527.57783627,0.00012036,2]
[337696238,1725971408652,250.0,0.00011311,2]
[337696240,1725971432236,-150.0,0.00012035,2]
[337696241,1725971432245,-300.0,0.00012035,2]
[337696243,1725971432255,-1915.2985783,0.00012036,2]
[337696246,1725971432293,-1053.6864236,0.00012036,2]
[337696247,1725971432304,-415.4936563,0.00012036,2]
[337696248,1725971432316,-3410.50407077,0.00012036,2]
[337696249,1725971432327,-3626.4606113,0.00012036,2]
[337696250,1725971432351,-9060.43426485,0.00012036,2]
[337696251,1725971432360,-2020.77,0.00012036,2]
[337696252,1725971432370,-3191.35,0.00012036,2]
[337696253,1725971432379,-699.25,0.00012036,2]
[337696254,1725971432388,-977.6,0.00012036,2]
[337696255,1725971432398,-500.0,0.00012036,2]
[337696256,1725971432407,-500.0,0.00012036,2]
[337696257,1725971432417,-1343.03,0.00012036,2]
[337696258,1725971432426,-1608.52,0.00012036,2]
[337696259,1725971432435,-1960.7,0.00012036,2]
[337696260,1725971432445,-722.14,0.00012036,2]
[337696261,1725971432454,-1538.41,0.00012036,2]
[337696262,1725971432463,-1799.34,0.00012036,2]
[337696263,1725971432473,-1536.12,0.00012036,2]
[337696264,1725971432482,-1039.06,0.00012036,2]
[337696265,1725971432491,-1305.59,0.00012036,2]
[337696266,1725971432500,-1878.5,0.00012036,2]
[337696267,1725971432509,-500.0,0.00012036,2]
[337696268,1725971432519,-3977.64,0.00012036,2]
[337696269,1725971432530,-604.89,0.00012036,2]
[337696271,1725971432540,-2477.83,0.00012036,2]
[337696273,1725971432549,-1733.89,0.00012036,2]
[337696274,1725971432558,-1487.89,0.00012036,2]
[337696275,1725971432567,-2020.78,0.00012036,2]
[337696276,1725971432577,-1661.41,0.00012036,2]
[337696277,1725971432586,-1240.62,0.00012036,2]
[337696278,1725971432595,-1148.12,0.00012036,2]
[337696279,1725971432606,-7948.59,0.00012036,2]
[337696280,1725971432616,-4683.41,0.00012036,2]
[337696281,1725971432625,-3211.57,0.00012036,2]
[337696282,1725971432635,-1536.49,0.00012036,2]
[337696283,1725971432644,-21886.04,0.00012036,2]
[337696284,1725971432656,-729.78,0.00012036,2]
[337696285,1725971432665,-1323.33,0.00012036,2]
[337696286,1725971432674,-1338.54,0.00012036,2]
[337696288,1725971432683,-4793.95,0.00012036,2]
[337696290,1725971432693,-454.35699078,0.00012036,2]
[337696292,1725971432702,-1070.2,0.00012036,2]
[337696294,1725971432711,-500.0,0.00012036,2]
[337696295,1725971432721,-4865.4,0.00012036,2]
[337696296,1725971432732,-1711.52,0.00012036,2]
[337696297,1725971432742,-576.34,0.00012036,2]
[337696299,1725971432751,-500.0,0.00012036,2]
[337696301,1725971432760,-500.0,0.00012037,2]
[337696303,1725971432769,-500.0,0.00012037,2]
[337696305,1725971432780,-500.0,0.00012037,2]
[337696307,1725971432789,-500.0,0.00012037,2]
[337696309,1725971432798,-791.59,0.00012037,2]
[337696311,1725971432807,-500.0,0.00012037,2]
[337696312,1725971432817,-500.0,0.00012037,2]
[337696314,1725971432826,-500.0,0.00012037,2]
[337696316,1725971432835,-839.99,0.00012037,2]
[337696318,1725971432845,-1630.19,0.00012037,2]
[337696320,1725971432854,-1524.34,0.00012037,2]
[337696321,1725971432864,-500.0,0.00012037,2]
[337696322,1725971432873,-1010.38,0.00012037,2]
[337696323,1725971432883,-822.2,0.00012037,2]
[337696324,1725971432891,-595.38,0.00012037,2]
[337696325,1725971432900,-675.01,0.00012037,2]
[337696326,1725971432910,-931.27,0.00012037,2]
[337696327,1725971432919,-558.30674273,0.00012037,2]
[337696328,1725971432931,-820.09325727,0.00012037,2]
[337696329,1725971432941,-684.94,0.00012037,2]
[337696330,1725971432950,-500.0,0.00012037,2]
[337696331,1725971432960,-500.0,0.00012037,2]
[337696332,1725971432969,-602.74,0.00012037,2]
[337696333,1725971432978,-500.0,0.00012037,2]
[337696334,1725971432987,-823.93,0.00012037,2]
[337696335,1725971432996,-500.0,0.00012037,2]
[337696336,1725971433006,-500.0,0.00012037,2]
[337696337,1725971433015,-638.37,0.00012037,2]
[337696338,1725971433024,-691.93380854,0.00012037,2]
[337696339,1725971433053,-308.06435349,0.00012037,2]
[337696340,1725971433065,-395.25183797,0.00012037,2]
[337696341,1725971433075,-859.08,0.00012037,2]
[337696342,1725971433084,-1999.75,0.00012037,2]